Workbook

Sheet Лист1
B2: МЕНЮ
B3: ПРИМЕРНОЕ ДВУХНЕДЕЛЬНОЕ МЕНЮ ДЛЯ ОБУЧАЮЩИХСЯ В ОБЩЕОБРАЗОВАТЕЛЬНЫХ ОРГАНИЗАЦИЯХ С 1-4 КЛАССЫ
S4: (НОЯБРЬ, ДЕКАБРЬ)
A5: № рецептуры | B5: Наименование блюд | G5: Выход | H5: Белки, г | I5: Жиры, г | K5: Углеводы, г | M5: Калорийность, ккал | O5: Витамин B1, мг | P5: Витамин С, мг | R5: Витамин А, мг | T5: Витамин Е, мг | V5: Ca, мг | W5: P, мг | X5: Mg, мг | Y5: Fe, мг
B6: 1-ая неделя
B7: 1 день
A8: ТТК | B8: САЛАТ ИЗ МОРКОВИ | G8: 60 | H8: 0.516 | I8: 3.132 | K8: 4.450 | M8: 49 | O8: 0.029 | P8: 2.430 | R8: - | T8: 2.834 | V8: 13.302 | W8: 26.850 | X8: 18.468 | Y8: 0.358
A9: ТТК 102 | B9: БИФШТЕКС РУБЛЕНЫЙ ПО-ДОМАШНЕМУ, п/ф | G9: 80 | H9: 9.410 | I9: 7.610 | K9: 8.052 | M9: 194 | O9: 0.064 | P9: 2.304 | R9: 1.600 | T9: 1.343 | V9: 27.910 | W9: 140.408 | X9: 18.965 | Y9: 1.957
A10: № 508/3 сборник 2004 | B10: КАША ГРЕЧНЕВАЯ РАССЫПЧ.С МАСЛОМ | G10: 150/5 | H10: 6.662 | I10: 9.024 | K10: 33.000 | M10: 170 | O10: 0.292 | P10: - | R10: 41.000 | T10: 0.518 | V10: 27.352 | W10: 180.553 | X10: 104.550 | Y10: 3.501
A11: № 377 Сбор.рец. На прод-ию для обуч. Во всех образ.учреж-Дели 2015 | B11: ЧАЙ ЧЕРНЫЙ С САХАРОМ | G11: 200/15 | H11: - | I11: - | K11: 14.970 | M11: 60 | O11: - | P11: - | R11: - | T11: - | V11: 0.450 | W11: - | X11: - | Y11: 0.045
B12: ХЛЕБ БЕЛЫЙ | G12: 30 | H12: 2.280 | I12: 0.240 | K12: 14.760 | M12: 71 | O12: 0.033 | P12: - | R12: - | T12: 0.330 | V12: 6.000 | W12: 19.500 | X12: 4.200 | Y12: 0.330
B13: ХЛЕБ СЕЛЬСКИЙ | G13: 20 | H13: 1.000 | I13: 0.200 | K13: 9.000 | M13: 44 | O13: 0.014 | P13: - | R13: - | T13: 0.108 | V13: 2.760 | W13: 12.720 | X13: 3.000 | Y13: 0.372
B14: Итого: | H14: =SUM(H9:H13) -> 19.352 | I14: =SUM(I9:J13) -> 17.074 | K14: =SUM(K9:L13) -> 79.782 | M14: =SUM(M9:N13) -> 539 | O14: 0.432 | P14: 4.734 | R14: 42.6 | T14: 5.133 | V14: 77.774 | W14: 380.031 | X14: 149.183 | Y14: 6.563
B15: 2 день
A16: № 71 Сбор.рец. На прод-ию для обуч. Во всех образ.учреж-Дели 2015 | B16: ОВОЩИ НАТУРАЛЬНЫЕ СВЕЖИЕ (ОГУРЦЫ) | G16: 60 | H16: 1.000 | I16: 0.060 | K16: 1.140 | M16: 7 | O16: 0.018 | P16: 4.200 | R16: - | T16: 0.060 | V16: 10.200 | W16: 18.000 | X16: 8.400 | Y16: 0.300 | AI16: 2 ВАРИАНТ (НОЯБРЬ, ДЕКАБРЬ)
A17: № 289 Сбор.рец. На прод-ию для обуч. Во всех образ.учреж-Дели 2015 | B17: РАГУ ИЗ ПТИЦЫ (грудки куриные) | G17: 50/150 | H17: 12.750 | I17: 17.960 | K17: 29.850 | M17: 313 | O17: 0.201 | P17: 24.076 | R17: 27.200 | T17: 3.444 | V17: 34.660 | W17: 186.911 | X17: 46.394 | Y17: 2.111
A18: № 382 Сбор.рец. На прод-ию для обуч. Во всех образ.учреж-Дели 2015 | B18: КАКАО С МОЛОКОМ | G18: 200 | H18: 3.600 | I18: 2.100 | K18: 25.168 | M18: 125 | O18: 0.044 | P18: 1.300 | R18: 20.000 | T18: 0.012 | V18: 125.720 | W18: 116.200 | X18: 31.000 | Y18: 1.040
B19: ХЛЕБ СЕЛЬСКИЙ | G19: 20 | H19: 1.000 | I19: 0.200 | K19: 9.000 | M19: 44 | O19: 0.014 | P19: - | R19: - | T19: 0.108 | V19: 2.760 | W19: 12.720 | X19: 3.000 | Y19: 0.372
B20: ХЛЕБ БЕЛЫЙ | G20: 30 | H20: 2.280 | I20: 0.240 | K20: 14.760 | M20: 71 | O20: 0.033 | P20: - | R20: - | T20: 0.330 | V20: 6.000 | W20: 19.500 | X20: 4.200 | Y20: 0.330
B21: Итого: | H21: =SUM(H16:H20) -> 20.630 | I21: =SUM(I16:J20) -> 20.560 | K21: =SUM(K16:L20) -> 79.918 | M21: =SUM(M16:N20) -> 560 | O21: 0.31 | P21: 29.576 | R21: 47.2 | T21: 3.954 | V21: 179.34 | W21: 353.331 | X21: 92.994 | Y21: 4.153
B22: 3 день
A23: № 52 Сбор.рец. На прод-ию для обуч. Во всех образ.учреж-Дели 2015 | B23: САЛАТ ИЗ СВЕКЛЫ ОТВАРНОЙ (с маслом) | G23: 60 | H23: 0.855 | I23: 3.653 | K23: 11.580 | M23: 56 | O23: 0.011 | P23: 5.700 | R23: - | T23: 1.641 | V23: 21.090 | W23: 24.582 | X23: 12.540 | Y23: 0.798
A24: № 433 2004 Г | B24: ГОВЯДИНА ТУШЕНАЯ | G24: 50/50 | H24: 10.500 | I24: 11.030 | K24: 3.184 | M24: 196 | O24: 0.063 | P24: 1.890 | R24: - | T24: 2.363 | V24: 14.806 | W24: 165.174 | X24: 22.164 | Y24: 2.430
A25: № 202 Сбор.рец. На прод-ию для обуч. Во всех образ.учреж-Дели 2015 | B25: МАКАРОННЫЕ ИЗДЕЛИЯ ОТВАРНЫЕ | G25: 150 | H25: 5.100 | I25: 4.468 | K25: 28.500 | M25: 187 | O25: 0.087 | P25: - | R25: 21.000 | T25: 0.816 | V25: 16.457 | W25: 47.009 | X25: 8.479 | Y25: 0.869
B26: ЧАЙ ЧЕРНЫЙ С САХАРОМ, ЛИМОНОМ | G26: 200/15/7 | H26: 0.084 | I26: 0.012 | K26: 15.185 | M26: 62 | O26: 0.003 | P26: 2.800 | R26: - | T26: 0.014 | V26: 3.250 | W26: 1.540 | X26: 0.840 | Y26: 0.087
B27: ХЛЕБ СЕЛЬСКИЙ | G27: 20 | H27: 1.000 | I27: 0.200 | K27: 9.000 | M27: 44 | O27: 0.014 | P27: - | R27: - | T27: 0.108 | V27: 2.760 | W27: 12.720 | X27: 3.000 | Y27: 0.372
B28: ХЛЕБ БЕЛЫЙ | G28: 30 | H28: 2.280 | I28: 0.240 | K28: 14.760 | M28: 71 | O28: 0.033 | P28: - | R28: - | T28: 0.330 | V28: 6.000 | W28: 19.500 | X28: 4.200 | Y28: 0.330
B29: Итого: | H29: =SUM(H23:H28) -> 19.819 | I29: =SUM(I23:J28) -> 19.603 | K29: =SUM(K23:L28) -> 82.209 | M29: =SUM(M23:N28) -> 616 | O29: 0.211 | P29: 10.39 | R29: 21 | T29: 5.272 | V29: 64.363 | W29: 270.525 | X29: 51.223 | Y29: 4.886
B30: 4 день
A31: № 70 Сбор.рец. На прод-ию для обуч. Во всех образ.учреж-Дели 2015 | B31: ОВОЩИ НАТУРАЛЬНЫЕ СОЛЕНЫЕ | G31: 60 | H31: 0.480 | I31: 0.060 | K31: 1.020 | M31: 8 | O31: 0.012 | P31: 3.000 | R31: - | T31: 0.060 | V31: 13.800 | W31: 14.400 | X31: 8.400 | Y31: 0.360
A32: ТТК | B32: ЗАПЕКАНКА КАРТОФЕЛЬНАЯ С КУРИНЫМИ ГРУДКАМИ С МАСЛОМ | G32: 180/5 | H32: 14.530 | I32: 19.621 | K32: 40.690 | M32: 408 | O32: 0.270 | P32: 36.736 | R32: 23.600 | T32: 5.153 | V32: 35.377 | W32: 202.777 | X32: 52.789 | Y32: 2.469
A33: № 377 Сбор.рец. На прод-ию для обуч. Во всех образ.учреж-Дели 2015 | B33: ЧАЙ ПАКЕТИРОВАННЫЙ ЧЕРНЫЙ С САХАРОМ | G33: 200/15 | H33: - | I33: - | K33: 14.970 | M33: 60 | O33: - | P33: - | R33: - | T33: - | V33: 0.450 | W33: - | X33: - | Y33: 0.045
B34: ХЛЕБ СЕЛЬСКИЙ | G34: 20 | H34: 1.000 | I34: 0.200 | K34: 9.000 | M34: 44 | O34: 0.014 | P34: - | R34: - | T34: 0.108 | V34: 2.760 | W34: 12.720 | X34: 3.000 | Y34: 0.372
B35: ХЛЕБ БЕЛЫЙ | G35: 30 | H35: 2.280 | I35: 0.240 | K35: 14.760 | M35: 71 | O35: 0.033 | P35: - | R35: - | T35: 0.330 | V35: 6.000 | W35: 19.500 | X35: 4.200 | Y35: 0.330
B36: Итого: | H36: =SUM(H31:H35) -> 18.290 | I36: =SUM(I31:J35) -> 20.121 | K36: =SUM(K31:L35) -> 80.440 | M36: =SUM(M31:N35) -> 591 | O36: 0.33 | P36: 39.736 | R36: 43.6 | T36: 5.701 | V36: 59.587 | W36: 250.897 | X36: 68.389 | Y36: 3.586
B37: 5 день
A38: № 71 Сбор.рец. На прод-ию для обуч. Во всех образ.учреж-Дели 2015 | B38: ОВОЩИ НАТУРАЛЬНЫЕ СВЕЖИЕ (ПОМИДОРЫ) | G38: 60 | H38: 0.660 | I38: 0.120 | K38: 2.280 | M38: 14 | O38: 0.036 | P38: 15.000 | R38: - | T38: 0.420 | V38: 8.400 | W38: 15.600 | X38: 12.000 | Y38: 0.540
A39: ТТК | B39: ТЕФТЕЛИ ИЗ ГОВЯДИНЫ В СОУСЕ ТОМАТНОМ, п/ф | G39: 80/50 | H39: 8.660 | I39: 12.412 | K39: 5.450 | M39: 152 | O39: 0.066 | P39: 3.861 | R39: - | T39: 5.384 | V39: 24.974 | W39: 115.026 | X39: 18.930 | Y39: 1.778
A40: № 304 Сбор.рец. На прод-ию для обуч. Во всех образ.учреж-Дели 2015 | B40: РИС ОТВАРНОЙ | G40: 150 | H40: 3.834 | I40: 5.434 | K40: 31.600 | M40: 210 | O40: 0.044 | P40: - | R40: 27.000 | T40: 0.284 | V40: 11.460 | W40: 84.150 | X40: 27.330 | Y40: 0.597
A41: № 382 Сбор.рец. На прод-ию для обуч. Во всех образ.учреж-Дели 2015 | B41: КАКАО С МОЛОКОМ | G41: 200 | H41: 3.600 | I41: 2.100 | K41: 25.168 | M41: 125 | O41: 0.044 | P41: 1.300 | R41: 20.000 | T41: 0.012 | V41: 125.720 | W41: 116.200 | X41: 31.000 | Y41: 1.040
B42: ХЛЕБ СЕЛЬСКИЙ | G42: 20 | H42: 1.000 | I42: 0.200 | K42: 9.000 | M42: 44 | O42: 0.014 | P42: - | R42: - | T42: 0.108 | V42: 2.760 | W42: 12.720 | X42: 3.000 | Y42: 0.372
B43: ХЛЕБ БЕЛЫЙ | G43: 30 | H43: 2.280 | I43: 0.240 | K43: 14.760 | M43: 71 | O43: 0.033 | P43: - | R43: - | T43: 0.330 | V43: 6.000 | W43: 19.500 | X43: 4.200 | Y43: 0.330
B44: Итого: | H44: =SUM(H38:H41) -> 16.754 | I44: =SUM(I38:J41) -> 20.066 | K44: =SUM(K38:L41) -> 64.498 | M44: =SUM(M38:N41) -> 501 | O44: 0.237 | P44: 20.161 | R44: 47 | T44: 6.538 | V44: 179.314 | W44: 363.196 | X44: 96.46 | Y44: 4.657
B45: 6 день
A46: № 338 Сбор.рец. На прод-ию для обуч. Во всех образ.учреж-Дели 2015 | B46: ПЛОДЫ И ЯГОДЫ СВЕЖИЕ (ЯБЛОКИ) | G46: 100 | H46: 0.400 | I46: 0.400 | K46: 7.350 | M46: 47 | O46: 0.030 | P46: 10.000 | R46: - | T46: 0.200 | V46: 16.000 | W46: 11.000 | X46: 9.000 | Y46: 2.200
A47: № 47 Сбор.рец. На прод-ию для обуч. Во всех образ.учреж-Дели 2015 | B47: САЛАТ ИЗ КВАШЕНОЙ КАПУСТЫ | G47: 60 | H47: 2.600 | I47: 5.058 | K47: 4.944 | M47: 56 | O47: 0.013 | P47: 15.180 | R47: - | T47: 1.381 | V47: 25.278 | W47: 18.606 | X47: 8.616 | Y47: 0.349
A48: ТТК | B48: ПЕЛЬМЕНИ "ДЛЯ УМНИКОВ И УМНИЦ" ОТВАРНЫЕ С МАСЛОМ , п/ф | G48: 180/5 | H48: 11.940 | I48: 13.375 | K48: 27.340 | M48: 279 | O48: 0.159 | P48: 2.491 | R48: 32.251 | T48: 1.283 | V48: 44.453 | W48: 200.918 | X48: 27.579 | Y48: 2.401
A49: № 377 Сбор.рец. На прод-ию для обуч. Во всех образ.учреж-Дели 2015 | B49: ЧАЙ ЧЕРНЫЙ С САХАРОМ, ЛИМОНОМ | G49: 200/15/7 | H49: 0.084 | I49: 0.012 | K49: 15.185 | M49: 62 | O49: 0.003 | P49: 2.800 | R49: - | T49: 0.014 | V49: 3.250 | W49: 1.540 | X49: 0.840 | Y49: 0.087
B50: ХЛЕБ СЕЛЬСКИЙ | G50: 20 | H50: 1.000 | I50: 0.200 | K50: 9.000 | M50: 44 | O50: 0.014 | P50: - | R50: - | T50: 0.108 | V50: 2.760 | W50: 12.720 | X50: 3.000 | Y50: 0.372
B51: ХЛЕБ БЕЛЫЙ | G51: 30 | H51: 2.280 | I51: 0.240 | K51: 14.760 | M51: 71 | O51: 0.033 | P51: - | R51: - | T51: 0.330 | V51: 6.000 | W51: 19.500 | X51: 4.200 | Y51: 0.330
B52: Итого: | H52: =SUM(H47:H48) -> 14.540 | I52: =SUM(I47:J48) -> 18.433 | K52: =SUM(K47:L48) -> 32.284 | M52: =SUM(M47:N48) -> 335 | O52: 0.253 | P52: 30.471 | R52: 52.251 | T52: 3.366 | V52: 98.941 | W52: 265.784 | X52: 53.235 | Y52: 5.749

Sheet Лист2

Sheet Лист3
